bitfinex-derivatives/quotes_BTCF0:USTF0_20250703
["timestamp","ask_amount","ask_price","bid_price","bid_amount"]
[1751570623844,0.21006679,109920.0,109910.0,1.7656907]
[1751570624048,0.21006679,109920.0,109910.0,2.07871057]
[1751570624745,0.02819269,109920.0,109910.0,2.07871057]
[1751570626246,0.21006679,109920.0,109910.0,2.07871057]
[1751570629147,0.02819269,109920.0,109910.0,2.07871057]
[1751570629447,0.21006679,109920.0,109910.0,2.13293317]
[1751570629847,0.02819269,109920.0,109910.0,2.13293317]
[1751570630047,0.00674621,109920.0,109910.0,2.16910571]
[1751570632049,0.18862031,109920.0,109910.0,2.16910571]
[1751570633249,0.00674621,109920.0,109910.0,2.16910571]
[1751570634253,0.00674621,109920.0,109910.0,2.13293317]
[1751570636545,0.00674621,109920.0,109910.0,1.30593317]
[1751570636751,0.00674621,109920.0,109910.0,2.13265317]
[1751570640153,0.86244018,109920.0,109910.0,0.94513317]
[1751570640455,0.86244018,109920.0,109910.0,0.94903122]
[1751570640654,1.23916005,109920.0,109910.0,0.94903122]
[1751570640853,1.27076005,109920.0,109910.0,1.77571122]
[1751570641249,0.95774018,109920.0,109910.0,1.77571122]
[1751570649158,0.92614018,109920.0,109910.0,1.77571122]
[1751570649461,0.92614018,109920.0,109910.0,1.46269135]
[1751570649661,0.92614018,109920.0,109910.0,1.77571122]
[1751570650963,0.92614018,109920.0,109910.0,0.94903122]
[1751570651164,0.92614018,109920.0,109910.0,1.77563122]
[1751570651467,0.92614018,109920.0,109910.0,1.46261135]
[1751570651659,0.56534018,109920.0,109910.0,0.94903122]
[1751570651859,0.56534018,109920.0,109910.0,1.77559122]
[1751570652158,0.00674621,109920.0,109910.0,2.48019317]
[1751570652359,0.50164018,109920.0,109910.0,1.30503317]
[1751570652561,0.50164018,109920.0,109910.0,2.13159317]
[1751570652762,0.50164018,109920.0,109910.0,1.77079317]
[1751570652961,0.50164018,109920.0,109910.0,1.80697178]
[1751570653462,0.18862031,109920.0,109910.0,1.80697178]
[1751570653666,0.50164018,109920.0,109910.0,1.80697178]
[1751570656466,0.18862031,109920.0,109910.0,1.80697178]
[1751570656668,0.50164018,109920.0,109910.0,1.80697178]
[1751570657470,0.18862031,109920.0,109910.0,1.80697178]
[1751570657769,0.50164018,109920.0,109910.0,1.80697178]
[1751570658473,0.18862031,109920.0,109910.0,1.80697178]
[1751570658774,0.50164018,109920.0,109910.0,1.80697178]
[1751570659571,0.50164018,109920.0,109910.0,1.75274918]
[1751570659964,0.18862031,109920.0,109910.0,1.75274918]
[1751570660772,0.50164018,109920.0,109910.0,1.75274918]
[1751570662372,0.18862031,109920.0,109910.0,1.75274918]
[1751570662572,0.50164018,109920.0,109910.0,1.75274918]
[1751570662774,0.18862031,109920.0,109910.0,1.75274918]
[1751570662966,0.50164018,109920.0,109910.0,1.75274918]
[1751570665475,0.86244018,109920.0,109910.0,1.75274918]
[1751570669086,0.50164018,109920.0,109910.0,1.75274918]
[1751570669282,0.86244018,109920.0,109910.0,1.75274918]
[1751570669586,0.86244018,109920.0,109910.0,1.77079317]
[1751570670486,0.86244018,109920.0,109910.0,1.80702774]
[1751570670688,0.86244018,109920.0,109910.0,0.98046774]
[1751570670987,0.86244018,109920.0,109910.0,1.80682774]
[1751570671182,0.89474018,109920.0,109910.0,1.80682774]
[1751570671383,1.20776005,109920.0,109910.0,0.63604787]
[1751570671584,1.23856005,109920.0,109910.0,1.43130787]
[1751570671784,1.26966005,109920.0,109910.0,1.43130787]
[1751570671986,1.26966005,109920.0,109910.0,1.74432774]
[1751570673387,1.26966005,109920.0,109910.0,0.91796774]
[1751570673887,0.95664018,109920.0,109910.0,0.91796774]
[1751570674090,1.26966005,109920.0,109910.0,0.91796774]
[1751570679193,1.26966005,109920.0,109910.0,0.60494787]
[1751570689493,1.26966005,109920.0,109910.0,0.5687133]
[1751570693297,1.23856005,109920.0,109910.0,0.5687133]
[1751570693497,1.23856005,109920.0,109910.0,0.6018133]
[1751570699599,1.23856005,109920.0,109910.0,0.63805425]
[1751570700298,1.59936005,109920.0,109910.0,0.33624095]
[1751570700504,2.45536005,109920.0,109910.0,0.51813045]
[1751570701802,2.45736005,109920.0,109910.0,0.51813045]
[1751570702503,2.45836005,109920.0,109910.0,0.51813045]
[1751570704504,2.09756005,109920.0,109910.0,0.51813045]
[1751570705306,2.09756005,109920.0,109910.0,0.4818895]
[1751570720009,2.09756005,109920.0,109910.0,0.5145895]
[1751570720310,1.27156005,109920.0,109910.0,0.5145895]
[1751570720505,0.37054621,109920.0,109910.0,0.82760937]
[1751570720709,0.68356608,109920.0,109910.0,0.92855032]
[1751570721410,0.32276608,109920.0,109910.0,0.92855032]
[1751570721710,0.32176608,109920.0,109910.0,0.93055032]
[1751570722311,0.32176608,109920.0,109910.0,0.92855032]
[1751570722603,0.00874621,109920.0,109910.0,1.62135032]
[1751570722811,0.32176608,109920.0,109910.0,1.29135032]
[1751570723004,0.32176608,109920.0,109910.0,1.34557292]
[1751570723510,0.31976608,109920.0,109910.0,1.03355305]
[1751570723711,0.31976608,109920.0,109910.0,1.34657292]
[1751570729214,0.31976608,109920.0,109910.0,1.29235032]
[1751570730114,0.50163938,109920.0,109910.0,0.93155032]
[1751570730310,0.68056608,109920.0,109910.0,0.93155032]
[1751570731118,0.99358595,109920.0,109910.0,0.93155032]
[1751570732417,0.99358595,109920.0,109910.0,0.61853045]
[1751570732617,0.68056608,109920.0,109910.0,0.93155032]
[1751570733120,0.99358595,109920.0,109910.0,0.93155032]
[1751570734318,0.68056608,109920.0,109910.0,0.93155032]
[1751570738218,0.31976608,109920.0,109910.0,1.34657292]
[1751570738620,0.00674621,109920.0,109910.0,1.34657292]
[1751570738920,0.31976608,109920.0,109910.0,1.34657292]
[1751570739120,0.31976608,109920.0,109910.0,0.98577292]
[1751570739618,0.00674621,109920.0,109910.0,0.98577292]
[1751570739818,0.31976608,109920.0,109910.0,0.98577292]
[1751570740019,0.00674621,109920.0,109910.0,0.98577292]
[1751570740318,0.31976608,109920.0,109910.0,0.98577292]
[1751570740518,0.00674621,109920.0,109910.0,0.98577292]
[1751570740720,0.31976608,109920.0,109910.0,0.98577292]
[1751570741521,0.00674621,109920.0,109910.0,0.98577292]
[1751570741714,0.31976608,109920.0,109910.0,0.98577292]
[1751570742522,0.00674621,109920.0,109910.0,0.98577292]
[1751570742714,0.31976608,109920.0,109910.0,0.98577292]
[1751570743520,0.00674621,109920.0,109910.0,0.98577292]
[1751570743822,0.31976608,109920.0,109910.0,0.98577292]
[1751570744523,0.00674621,109920.0,109910.0,0.98577292]
[1751570744719,0.31976608,109920.0,109910.0,0.98577292]
[1751570745523,0.00674621,109920.0,109910.0,0.98577292]
[1751570745724,0.31976608,109920.0,109910.0,0.98577292]
[1751570746527,0.00674621,109920.0,109910.0,0.98577292]
[1751570746725,0.31976608,109920.0,109910.0,0.98577292]
[1751570747526,0.00674621,109920.0,109910.0,0.98577292]
[1751570747727,0.31976608,109920.0,109910.0,0.98577292]
[1751570748523,0.00674621,109920.0,109910.0,0.98577292]
[1751570748727,0.31976608,109920.0,109910.0,0.98577292]
[1751570749129,0.31976608,109920.0,109910.0,0.94953197]
[1751570749526,0.00674621,109920.0,109910.0,0.93153424]
[1751570749731,0.31976608,109920.0,109910.0,0.93153424]
[1751570752640,0.00674621,109920.0,109910.0,0.98575684]
[1751570752837,0.31976608,109920.0,109910.0,0.98575684]
[1751570753135,0.31976608,109920.0,109910.0,0.67273697]
[1751570753342,0.31976608,109920.0,109910.0,0.98575684]
[1751570753533,0.00674621,109920.0,109910.0,0.98575684]
[1751570753733,0.31976608,109920.0,109910.0,0.98575684]
[1751570754540,0.00674621,109920.0,109910.0,0.98575684]
[1751570754731,0.31976608,109920.0,109910.0,0.98575684]
[1751570755538,0.00674621,109920.0,109910.0,0.98575684]
[1751570755836,0.31976608,109920.0,109910.0,0.98575684]
[1751570759541,0.31976608,109920.0,109910.0,0.94953197]
[1751570764745,0.31976608,109920.0,109910.0,0.91953197]
[1751570768042,0.31976608,109920.0,109910.0,0.64953197]
[1751570768245,0.31976608,109920.0,109910.0,0.95953197]
[1751570770547,0.00674621,109920.0,109910.0,0.95953197]
[1751570770748,0.31976608,109920.0,109910.0,0.95953197]
[1751570770945,0.31976608,109920.0,109910.0,0.99577157]
[1751570772248,0.31976608,109920.0,109910.0,0.95953197]
[1751570773448,0.31976608,109920.0,109910.0,0.99577121]
[1751570776850,0.31976608,109920.0,109910.0,0.95953197]
[1751570782057,0.31976608,109920.0,109910.0,0.6465121]
[1751570782356,0.31976608,109920.0,109910.0,0.95953197]
[1751570783956,0.31976608,109920.0,109910.0,0.6465121]
[1751570784352,0.31976608,109920.0,109910.0,0.95953197]
[1751570790157,0.68056608,109920.0,109910.0,0.95953197]
[1751570790354,0.31976608,109920.0,109910.0,1.78461197]
[1751570790656,0.00674621,109920.0,109910.0,1.78461197]
[1751570790854,0.31976608,109920.0,109910.0,1.78461197]
[1751570795251,0.00674621,109920.0,109910.0,1.78461197]
[1751570795556,0.31976608,109920.0,109910.0,1.78461197]
[1751570797963,0.00674621,109920.0,109910.0,1.78461197]
[1751570798264,0.31976608,109920.0,109910.0,1.78461197]
[1751570799765,0.31976608,109920.0,109910.0,1.76661588]
[1751570806972,0.00674621,109920.0,109910.0,1.76661588]
[1751570807272,0.31976608,109920.0,109910.0,1.76661588]
[1751570815882,0.31976608,109920.0,109910.0,1.78461197]
[1751570816584,0.00674621,109920.0,109910.0,1.78461197]
[1751570816784,0.31976608,109920.0,109910.0,1.78461197]
[1751570817585,0.00674621,109920.0,109910.0,1.78461197]
[1751570817785,0.31976608,109920.0,109910.0,1.78461197]
[1751570818593,0.00674621,109920.0,109910.0,1.78461197]
[1751570818792,0.31976608,109920.0,109910.0,1.78461197]
[1751570819590,0.00674621,109920.0,109910.0,1.78461197]
[1751570819888,0.31976608,109920.0,109910.0,1.78461197]
[1751570820089,0.31976608,109920.0,109910.0,0.95953197]
[1751570820291,0.31976608,109920.0,109910.0,1.78421197]
[1751570820590,0.00674621,109920.0,109910.0,1.78421197]
[1751570820790,0.31976608,109920.0,109910.0,1.78421197]
[1751570822593,0.00674621,109920.0,109910.0,1.78421197]
[1751570822794,0.31976608,109920.0,109910.0,1.78421197]
[1751570823999,0.00674621,109920.0,109910.0,1.78421197]
[1751570824191,0.31976608,109920.0,109910.0,1.78421197]
[1751570824594,0.00674621,109920.0,109910.0,1.78421197]
[1751570824795,0.31976608,109920.0,109910.0,1.78421197]
[1751570825595,0.00674621,109920.0,109910.0,1.78421197]
[1751570825797,0.31976608,109920.0,109910.0,1.78421197]
[1751570826194,0.00674621,109920.0,109910.0,1.78421197]
[1751570826383,0.31976608,109920.0,109910.0,1.78421197]
[1751570827192,0.00674621,109920.0,109910.0,2.02421197]
[1751570827394,0.3608,109950.0,109920.0,0.454686]
[1751570827593,0.75334778,109960.0,109950.0,0.1818247]
[1751570827789,1.01184467,109960.0,109950.0,0.4818247]
[1751570827983,0.95353667,109960.0,109950.0,0.79484457]
[1751570828191,1.26655654,109960.0,109950.0,0.79484457]
[1751570828487,0.95352807,109960.0,109950.0,0.79484457]
[1751570828692,1.27054794,109960.0,109950.0,0.83380871]
[1751570829094,1.27054794,109960.0,109950.0,0.49078884]
[1751570829295,2.09510794,109960.0,109950.0,0.80380871]
[1751570829691,2.09510794,109960.0,109950.0,0.49078884]
[1751570830899,2.10010794,109960.0,109950.0,0.49078884]
[1751570833498,1.40675961,109960.0,109930.0,0.03622125]
[1751570833702,1.16868104,109940.0,109930.0,0.68565045]
[1751570834100,1.26308104,109940.0,109930.0,0.65445045]
[1751570834401,1.26308104,109940.0,109930.0,0.66364498]
[1751570834600,1.26308104,109940.0,109930.0,0.69484498]
[1751570834894,1.26508104,109940.0,109930.0,0.69484498]
[1751570835101,1.26508104,109940.0,109930.0,0.65862373]
[1751570835694,1.26708104,109940.0,109930.0,0.65862373]
[1751570842800,0.004,109940.0,109930.0,1.96546347]
[1751570843001,1.88150857,109960.0,109950.0,0.1818247]
[1751570843201,2.19448844,109960.0,109950.0,0.81484457]
[1751570843407,2.19448844,109960.0,109950.0,0.84604457]
[1751570843606,2.19448844,109960.0,109950.0,0.87674457]
[1751570843902,2.19448844,109960.0,109950.0,0.5637247]
[1751570844108,1.37512844,109960.0,109950.0,0.5637247]
[1751570844408,2.19948844,109960.0,109950.0,0.5637247]
[1751570844911,2.20348844,109960.0,109950.0,0.5637247]
[1751570849415,0.5536082,109960.0,109950.0,0.87674457]
[1751570849618,0.86662807,109960.0,109950.0,0.87674457]
[1751570849804,0.011,109960.0,109950.0,1.24674457]
[1751570850007,0.32401987,109960.0,109950.0,1.24674457]
[1751570850207,0.32401987,109960.0,109950.0,1.23754457]
[1751570851213,0.011,109960.0,109950.0,1.23754457]
[1751570852116,0.011,109960.0,109950.0,1.27376582]
[1751570852409,0.011,109960.0,109950.0,2.09804582]
[1751570852614,0.011,109960.0,109950.0,2.06182457]
[1751570853913,0.32401987,109960.0,109950.0,2.06182457]
[1751570854113,0.011,109960.0,109950.0,2.06182457]
[1751570854303,0.011,109960.0,109950.0,1.23754457]
[1751570855715,0.32401987,109960.0,109950.0,1.23754457]
[1751570857417,0.011,109960.0,109950.0,1.23754457]
[1751570857618,0.32401987,109960.0,109950.0,1.23754457]
[1751570858618,0.011,109960.0,109950.0,1.23754457]
[1751570858818,0.011,109960.0,109950.0,1.27376582]
[1751570859116,0.32401987,109960.0,109950.0,1.27376582]
[1751570860619,0.011,109960.0,109950.0,1.27376582]
[1751570860818,0.32401987,109960.0,109950.0,1.27376582]
[1751570862620,0.011,109960.0,109950.0,1.27376582]
[1751570862917,0.011,109960.0,109950.0,1.62376582]
[1751570863220,0.011,109960.0,109950.0,1.58754457]
[1751570863720,0.011,109960.0,109950.0,1.62376582]
[1751570864321,0.011,109960.0,109950.0,1.27376582]
[1751570865717,0.011,109960.0,109950.0,1.65376582]
[1751570866024,0.011,109960.0,109950.0,1.27376582]
[1751570868817,0.011,109960.0,109950.0,1.59376582]
[1751570869724,0.011,109960.0,109950.0,1.23754457]
[1751570869914,0.0969,109980.0,109970.0,0.1817917]
[1751570870113,0.91959547,109980.0,109970.0,1.59885157]
[1751570870321,0.91959547,109980.0,109970.0,1.63065157]
[1751570870622,1.43940471,109980.0,109950.0,0.12713015]
[1751570870820,1.16864794,109960.0,109950.0,0.62439535]
[1751570871020,1.16864794,109960.0,109950.0,0.48804595]
[1751570871322,1.26174794,109960.0,109950.0,0.48804595]
[1751570871818,0.94849616,109960.0,109950.0,0.48804595]
[1751570872121,0.94849616,109960.0,109950.0,0.4518247]
[1751570872331,0.94949616,109960.0,109950.0,0.4518247]
[1751570879636,0.94949616,109960.0,109950.0,0.48804595]
[1751570880133,1.31029616,109960.0,109950.0,0.30622125]
[1751570880334,0.1818247,109950.0,109940.0,0.09055312]
[1751570880537,0.1818413,109940.0,109930.0,0.30899405]
[1751570880736,0.91722926,109940.0,109930.0,0.5627728]
[1751570880934,0.1818578,109930.0,109920.0,0.46787972]
[1751570881235,1.74048576,109930.0,109920.0,0.5073266]
[1751570881440,1.73748576,109930.0,109920.0,0.5073266]
[1751570881641,1.73648576,109930.0,109920.0,0.5073266]
[1751570882139,1.73648576,109930.0,109920.0,0.5133266]
[1751570882645,1.73648576,109930.0,109920.0,0.5083266]
[1751570883738,1.4236978,109930.0,109920.0,0.5083266]
[1751570884037,1.73648576,109930.0,109920.0,0.5083266]
[1751570886127,1.73648576,109930.0,109920.0,0.5413266]
[1751570886631,0.5696578,109930.0,109920.0,0.5413266]
[1751570886837,1.3937778,109930.0,109920.0,0.5728266]
[1751570888442,1.3937778,109930.0,109920.0,0.5718266]
[1751570888636,1.70656576,109930.0,109920.0,0.5738266]
[1751570889036,1.70656576,109930.0,109920.0,0.5748266]
[1751570890439,0.88244576,109930.0,109920.0,0.5748266]
[1751570890636,1.73800576,109930.0,109920.0,0.5748266]
[1751570890841,1.73800576,109930.0,109920.0,0.5433266]
[1751570893042,1.73800576,109930.0,109920.0,0.5760266]
[1751570895344,1.70660576,109930.0,109920.0,0.5760266]
[1751570897642,1.67560576,109930.0,109920.0,0.5760266]
[1751570897838,1.67560576,109930.0,109920.0,0.6060266]
[1751570903152,1.67560576,109930.0,109920.0,0.91881456]
[1751570903451,1.3628178,109930.0,109920.0,0.6060266]
[1751570903644,1.15943529,109940.0,109930.0,0.1818573]
[1751570903844,0.6335546,109950.0,109940.0,0.1818407]
[1751570904045,1.77054256,109950.0,109940.0,0.5574407]
[1751570905252,1.80264256,109950.0,109940.0,0.5574407]
[1751570905453,1.80364256,109950.0,109940.0,0.5574407]
[1751570906456,1.80564256,109950.0,109940.0,0.5574407]
[1751570908747,0.94934256,109950.0,109940.0,0.5574407]
[1751570908946,1.77350256,109950.0,109940.0,0.5886407]
[1751570910255,1.77350256,109950.0,109940.0,0.59787724]
[1751570910554,1.77350256,109950.0,109940.0,0.4918406]
[1751570910754,0.1818406,109940.0,109930.0,0.62585225]
[1751570910954,0.92002856,109940.0,109930.0,0.69585225]
[1751570914462,0.6072406,109940.0,109930.0,0.70506802]
[1751570914661,0.92002856,109940.0,109930.0,0.70506802]
[1751570914961,0.6072406,109940.0,109930.0,0.65960452]
[1751570915161,0.92002856,109940.0,109930.0,0.65960452]
[1751570915361,0.92002856,109940.0,109930.0,0.65038875]
[1751570916260,0.95132856,109940.0,109930.0,0.58898875]
[1751570916466,0.95132856,109940.0,109930.0,0.28]
[1751570916666,0.95132856,109940.0,109930.0,0.4618572]
[1751570919663,1.02517344,109940.0,109930.0,0.4618572]
[1751570926970,0.71238548,109940.0,109930.0,0.4618572]
[1751570927172,1.02517344,109940.0,109930.0,0.4618572]
[1751570928566,0.66437344,109940.0,109930.0,0.4618572]
[1751570928771,1.02517344,109940.0,109930.0,0.4618572]
[1751570929576,1.02517344,109940.0,109930.0,0.4948572]
[1751570931373,1.02517344,109940.0,109930.0,0.5268572]
[1751570932674,0.99387344,109940.0,109930.0,0.5268572]
[1751570933874,1.79327344,109940.0,109930.0,0.5571572]
[1751570934374,1.48048548,109940.0,109930.0,0.5571572]
[1751570934574,0.96107344,109940.0,109930.0,0.5571572]
[1751570934773,1.76135344,109940.0,109930.0,0.5571572]
[1751570935072,0.92927344,109940.0,109930.0,0.5571572]
[1751570935468,1.76155344,109940.0,109930.0,0.5571572]
[1751570935672,0.85542856,109940.0,109930.0,0.5571572]
[1751570935976,1.68766856,109940.0,109930.0,0.5571572]
[1751570936476,0.85542856,109940.0,109930.0,0.5571572]
[1751570936678,0.5426406,109940.0,109930.0,0.86994516]
[1751570936873,1.3747206,109940.0,109930.0,0.86994516]
[1751570937366,0.5426406,109940.0,109930.0,0.86994516]
[1751570937772,1.3746406,109940.0,109930.0,0.86994516]
[1751570939278,1.3746406,109940.0,109930.0,0.5571572]
[1751570939985,1.68742856,109940.0,109930.0,0.5571572]
[1751570940181,1.68742856,109940.0,109930.0,0.3753]
[1751570940387,1.68742856,109940.0,109930.0,0.5571571]
[1751570940584,1.68742856,109940.0,109930.0,0.3753]
[1751570940785,1.68742856,109940.0,109930.0,0.5268571]
[1751570941086,1.71862856,109940.0,109930.0,0.5268571]
[1751570948299,1.77315154,109940.0,109930.0,0.5268571]
[1751570949596,1.71862856,109940.0,109930.0,0.5268571]
[1751570951296,1.3746406,109940.0,109930.0,0.5268571]
[1751570951496,1.3746406,109940.0,109930.0,0.56307835]
[1751570951497,1.68742856,109940.0,109930.0,0.56307835]
[1751570952898,0.5426406,109940.0,109930.0,0.56307835]
[1751570953093,0.73354028,109950.0,109940.0,0.1818407]
[1751570953300,0.73354028,109950.0,109940.0,0.86932866]
[1751570953301,1.5105373,109950.0,109940.0,0.86932866]
[1751570953502,0.6790173,109950.0,109940.0,0.5565407]
[1751570953799,1.5104973,109950.0,109940.0,0.5565407]
[1751570954100,1.5124973,109950.0,109940.0,0.5565407]
[1751570954695,1.82528526,109950.0,109940.0,0.5565407]
[1751570955406,1.82628526,109950.0,109940.0,0.5565407]
[1751570957410,1.5134973,109950.0,109940.0,0.5565407]
[1751570957701,1.82628526,109950.0,109940.0,0.5565407]
[1751570959397,1.5134973,109950.0,109940.0,0.5565407]
[1751570959597,1.82628526,109950.0,109940.0,0.5565407]
[1751570965411,1.82628526,109950.0,109940.0,0.5245407]
[1751570965704,1.85708526,109950.0,109940.0,0.5245407]
[1751570968402,1.88818526,109950.0,109940.0,0.5245407]
[1751570970314,0.1818406,109940.0,109930.0,0.44261075]
[1751570970510,0.95132856,109940.0,109930.0,0.66445425]
[1751570971510,0.95132856,109940.0,109930.0,0.69765425]
[1751570972309,0.91882856,109940.0,109930.0,0.73015425]
[1751570975310,1.74926856,109940.0,109930.0,0.73015425]
[1751570976613,0.91882856,109940.0,109930.0,0.73015425]
[1751570976814,1.74906856,109940.0,109930.0,0.73015425]
[1751570981220,1.38826856,109940.0,109930.0,0.73015425]
[1751570981415,1.74906856,109940.0,109930.0,0.73015425]
[1751570989622,1.68566856,109940.0,109930.0,0.78448612]
[1751570989826,1.68566856,109940.0,109930.0,0.81728612]
[1751570990825,1.32486856,109940.0,109930.0,0.81728612]
[1751570991726,1.6377691,109940.0,109930.0,1.13013037]
[1751570993026,1.6681691,109940.0,109930.0,1.13013037]
[1751570993630,0.8379291,109940.0,109930.0,1.13013037]
[1751570993829,1.6669691,109940.0,109930.0,1.13013037]
[1751570997534,1.6669691,109940.0,109930.0,0.81728612]
[1751570997937,1.6669691,109940.0,109930.0,1.13013037]
[1751570999339,1.6669691,109940.0,109930.0,0.81728612]
[1751571000138,2.0277691,109940.0,109930.0,0.72635872]
[1751571000334,2.0277691,109940.0,109930.0,0.69355872]
[1751571000539,2.44659591,109940.0,109930.0,0.58240992]
[1751571000744,2.16445166,109940.0,109930.0,0.58240992]
[1751571000936,2.16445166,109940.0,109930.0,0.40055312]
[1751571001136,2.16445166,109940.0,109930.0,0.34622125]
[1751571001640,2.16445166,109940.0,109930.0,0.52807805]
[1751571001843,2.16445166,109940.0,109930.0,0.31]
[1751571002039,0.1818568,109930.0,109920.0,0.21932125]
[1751571002239,1.1989453,109930.0,109920.0,0.4818734]
[1751571002438,1.2614453,109930.0,109920.0,0.4818734]
[1751571002639,1.2614453,109930.0,109920.0,0.3]
[1751571002841,1.2614453,109930.0,109920.0,0.4818734]
[1751571003641,1.2614453,109930.0,109920.0,0.4828734]
[1751571005050,1.2614453,109930.0,109920.0,0.4848734]
[1751571005253,1.4335768,109930.0,109920.0,0.4848734]
[1751571005545,0.6790448,109940.0,109920.0,1.47620655]
[1751571005752,1.82048905,109940.0,109930.0,0.52620095]
[1751571005942,1.82048905,109940.0,109930.0,0.89180095]
[1751571006142,1.82048905,109940.0,109930.0,0.5789567]
[1751571006344,2.1333333,109940.0,109930.0,0.89180095]
[1751571006544,2.1333333,109940.0,109930.0,0.5789567]
[1751571006855,2.1333333,109940.0,109930.0,0.3]
[1751571007149,2.1956333,109940.0,109930.0,0.3]
[1751571007752,1.88286314,109940.0,109930.0,0.3]
[1751571007950,1.88286314,109940.0,109930.0,0.4818567]
[1751571008640,1.91356314,109940.0,109930.0,0.4818567]
[1751571008844,1.98635434,109940.0,109930.0,0.3]
[1751571014341,0.844836,109940.0,109930.0,0.3]
[1751571014549,1.5076848,109940.0,109930.0,0.4818569]
[1751571014749,1.82060314,109940.0,109930.0,0.5788569]
[1751571015851,0.99196314,109940.0,109930.0,0.5788569]
[1751571016051,1.82056314,109940.0,109930.0,0.5788569]
[1751571016252,0.99196314,109940.0,109930.0,0.5788569]
[1751571016453,1.82076314,109940.0,109930.0,0.5788569]
[1751571017253,1.82072314,109940.0,109930.0,0.5788569]
[1751571017754,1.82064314,109940.0,109930.0,0.5788569]
[1751571017956,1.82060314,109940.0,109930.0,0.5788569]
[1751571028665,1.81984314,109940.0,109930.0,0.5788569]
[1751571029166,1.85024314,109940.0,109930.0,0.5788569]
[1751571029866,1.02236314,109940.0,109930.0,0.5788569]
[1751571030164,1.85012314,109940.0,109930.0,0.397]
[1751571030371,1.85012314,109940.0,109930.0,0.3641]
[1751571030564,1.88202314,109940.0,109930.0,0.5459569]
[1751571030867,1.05426314,109940.0,109930.0,0.5459569]
[1751571031061,1.88198314,109940.0,109930.0,0.5459569]
[1751571031263,1.91328314,109940.0,109930.0,0.5142569]
[1751571031463,1.91328314,109940.0,109930.0,0.3]
[1751571032970,1.98514655,109940.0,109930.0,0.3]
[1751571034672,1.98514655,109940.0,109930.0,0.4818569]
[1751571034866,1.98514655,109940.0,109930.0,0.3]
[1751571035172,2.03966953,109940.0,109930.0,0.3]
[1751571039773,1.98514655,109940.0,109930.0,0.3]
[1751571049879,2.61111274,109940.0,109930.0,0.3]
[1751571060285,0.1818568,109930.0,109920.0,0.0617]
[1751571060586,1.22897982,109930.0,109920.0,0.3717]
[1751571061088,1.26107982,109930.0,109920.0,0.3417]
[1751571061984,1.26107982,109930.0,109920.0,0.3427]
[1751571062187,1.26107982,109930.0,109920.0,0.3437]
[1751571062385,0.1818733,109920.0,109910.0,0.17271959]
[1751571062683,1.99495632,109920.0,109910.0,0.37271959]
[1751571063390,2.30791783,109920.0,109910.0,0.34221959]
[1751571063590,2.30791783,109920.0,109910.0,0.34721959]
[1751571063890,2.37311783,109920.0,109910.0,0.34721959]
[1751571064280,2.06015632,109920.0,109910.0,0.34721959]
[1751571065686,2.37311783,109920.0,109910.0,0.34721959]
[1751571066486,1.54675783,109920.0,109910.0,0.34721959]
[1751571066685,2.60351783,109920.0,109910.0,0.34721959]
[1751571066885,2.61259215,109920.0,109910.0,0.34721959]
[1751571070591,2.29963064,109920.0,109910.0,0.34721959]
[1751571071493,1.93883064,109920.0,109910.0,0.34721959]
[1751571071694,2.29963064,109920.0,109910.0,0.34721959]
[1751571074907,2.61259215,109920.0,109910.0,0.34721959]
[1751571075398,2.25179215,109920.0,109910.0,0.34721959]
[1751571075697,2.61259215,109920.0,109910.0,0.34721959]
[1751571075991,2.29963064,109920.0,109910.0,0.34721959]
[1751571078399,2.61259215,109920.0,109910.0,0.34721959]
[1751571079300,2.29963064,109920.0,109910.0,0.34721959]
[1751571080902,2.61259215,109920.0,109910.0,0.34721959]
[1751571083502,2.25179215,109920.0,109910.0,0.34721959]
[1751571083802,2.61259215,109920.0,109910.0,0.34721959]
[1751571085091,2.64369215,109920.0,109910.0,0.34721959]
[1751571086508,2.28289215,109920.0,109910.0,0.34721959]
[1751571086700,2.64369215,109920.0,109910.0,0.34721959]
[1751571089597,2.28289215,109920.0,109910.0,0.34721959]
[1751571089908,2.64369215,109920.0,109910.0,0.34721959]
[1751571090100,2.64369215,109920.0,109910.0,0.03721959]
[1751571090302,3.40070338,109920.0,109900.0,0.0543168]
[1751571090607,0.1819064,109900.0,109890.0,0.05436379]
[1751571090800,2.30795093,109900.0,109890.0,0.05436379]
[1751571090996,0.1819395,109880.0,109870.0,0.10634265]
[1751571091201,2.35582252,109880.0,109870.0,0.32402025]
[1751571091403,2.69908403,109880.0,109870.0,0.32402025]
[1751571091803,2.0734798,109880.0,109870.0,0.32402025]
[1751571092703,2.07835069,109880.0,109870.0,0.32402025]
[1751571093305,2.07835069,109880.0,109870.0,0.32802025]
[1751571093505,2.07835069,109880.0,109870.0,0.29592025]
[1751571093704,2.11055069,109880.0,109870.0,0.26582025]
[1751571094704,2.18285459,109880.0,109870.0,0.26582025]
[1751571095110,2.11055069,109880.0,109870.0,0.26582025]
[1751571095808,2.10855069,109880.0,109870.0,0.26582025]
[1751571099710,0.96891039,109880.0,109870.0,0.44777575]
[1751571099913,0.96891039,109880.0,109870.0,0.26582025]
[1751571099914,2.30699069,109880.0,109870.0,0.26582025]
[1751571100106,2.30699069,109880.0,109870.0,0.29842025]
[1751571100306,2.37873381,109880.0,109870.0,0.30142025]
[1751571100904,1.32173381,109880.0,109870.0,0.30142025]
[1751571101108,1.32173381,109880.0,109870.0,0.48337575]
[1751571101308,2.37881381,109880.0,109870.0,0.48337575]
[1751571101507,2.37881381,109880.0,109870.0,0.30142025]
[1751571107817,2.06553351,109880.0,109870.0,0.30142025]
[1751571108016,2.37881381,109880.0,109870.0,0.30142025]
[1751571110416,2.40063848,109880.0,109870.0,0.30142025]
[1751571112520,1.67903848,109880.0,109870.0,0.30142025]
[1751571112717,2.40063848,109880.0,109870.0,0.30142025]
[1751571113823,3.02717352,109880.0,109870.0,0.30142025]
[1751571114521,3.02717352,109880.0,109870.0,0.48337585]
[1751571114723,3.02717352,109880.0,109870.0,0.30142025]
[1751571114923,2.71390174,109880.0,109870.0,0.30142025]
[1751571115323,2.71390174,109880.0,109870.0,0.48337575]
[1751571115728,1.64795085,109880.0,109870.0,0.48337575]
[1751571115929,2.70507085,109880.0,109870.0,0.30142025]
[1751571116129,2.70507085,109880.0,109870.0,0.48337575]
[1751571116822,2.03099907,109880.0,109870.0,0.79664753]
[1751571117018,0.87183595,109880.0,109870.0,1.16664753]
[1751571117224,1.22294028,109890.0,109880.0,0.181939]
[1751571117424,1.84125075,109890.0,109880.0,0.85921078]
[1751571117627,1.84125075,109890.0,109880.0,0.89251078]
[1751571117931,0.20380687,109890.0,109880.0,1.53578256]
[1751571118128,2.7193162,109900.0,109890.0,0.1819224]
[1751571118325,3.05466001,109900.0,109890.0,0.82749418]
[1751571118530,0.60822001,109900.0,109890.0,0.82749418]
[1751571119831,0.60822001,109900.0,109890.0,0.5142224]
[1751571119832,0.29494823,109900.0,109890.0,0.5142224]
[1751571120327,0.29494823,109900.0,109890.0,0.52352619]
[1751571121223,0.29594823,109900.0,109890.0,0.52352619]
[1751571121428,0.29594823,109900.0,109890.0,0.87352619]